fUST/lending_fUST_20250819
["ID","MTS","AMOUNT","RATE_DAILY","PERIOD"]
[380160820,1755585052219,-480.0,0.0002,2]
[380160821,1755585052228,-480.0,0.0002,2]
[380160822,1755585052238,-652.083183,0.0002,2]
[380160823,1755585052248,-1346.97,0.0002,2]
[380160824,1755585052257,-168.149576,0.0002,2]
[380160825,1755585052266,-480.0,0.0002,2]
[380160826,1755585052276,-480.0,0.0002,2]
[380160827,1755585052285,-168.149576,0.0002,2]
[380160828,1755585052295,-1556.94,0.0002,2]
[380160829,1755585052305,-480.0,0.0002,2]
[380160830,1755585052315,-480.0,0.0002,2]
[380160831,1755585052325,-554.73,0.0002,2]
[380160832,1755585052335,-151.0,0.0002,2]
[380160833,1755585052345,-4000.0,0.0002,4]
[380160834,1755585052356,-480.0,0.0002,2]
[380160835,1755585052365,-714.3,0.0002,2]
[380160836,1755585052375,-480.0,0.0002,2]
[380160837,1755585052385,-267.301356,0.0002,2]
[380160838,1755585052395,-480.0,0.0002,2]
[380160839,1755585052404,-480.0,0.0002,2]
[380160840,1755585052414,-802.3,0.0002,2]
[380160841,1755585052424,-267.301356,0.0002,2]
[380160842,1755585052433,-480.0,0.0002,2]
[380160843,1755585052443,-480.0,0.0002,2]
[380160844,1755585052455,-1591.45,0.0002,2]
[380160845,1755585052464,-151.0,0.0002,2]
[380160846,1755585052477,-1778.54429798,0.00020025,2]
[380160847,1755585052487,-1111.0,0.00020036,2]
[380160848,1755585052497,-1111.0,0.00020042,2]
[380160849,1755585052519,-151.0,0.00020042,2]
[380160850,1755585052528,-1111.0,0.00020048,2]
[380160851,1755585052538,-388.0,0.00020053,2]
[380160852,1755585052547,-500.0,0.00020073,2]
[380160853,1755585052557,-168.0,0.00020135,2]
[380160854,1755585052567,-156.34194283,0.00020164,2]
[380160855,1755585052577,-156.34194284,0.00020164,2]
[380160856,1755585052586,-500.0,0.00020165,2]
[380160857,1755585052596,-160.26794997,0.00020165,2]
[380160858,1755585052605,-221.7309803,0.00020165,2]
[380160859,1755585052615,-500.0,0.00020171,2]
[380160860,1755585052624,-1706.4196828,0.00020186,2]
[380160861,1755585052633,-1500.0,0.00020186,14]
[380160862,1755585052643,-1500.0,0.00020186,14]
[380160863,1755585052652,-1500.0,0.00020186,14]
[380160864,1755585052662,-1500.0,0.00020186,14]
[380160865,1755585052671,-1500.0,0.00020186,14]
[380160866,1755585052680,-1500.0,0.00020186,14]
[380160867,1755585052689,-1500.0,0.00020186,14]
[380160868,1755585052776,-1500.0,0.00020186,14]
[380160869,1755585052786,-1500.0,0.00020186,14]
[380160870,1755585052795,-1500.0,0.00020186,14]
[380160871,1755585052804,-1500.0,0.00020186,14]
[380160872,1755585052815,-1500.0,0.00020186,14]
[380160873,1755585052824,-178.669194,0.00020186,14]
[380160874,1755585052833,-263.262141,0.00020186,2]
[380160875,1755585052842,-154.004068,0.00020186,2]
[380160876,1755585052851,-263.262141,0.00020186,2]
[380160877,1755585052860,-652.083183,0.00020186,2]
[380160878,1755585052870,-652.083183,0.00020186,2]
[380160879,1755585052880,-168.149576,0.00020186,2]
[380160880,1755585052890,-168.149576,0.00020186,2]
[380160881,1755585052899,-151.0,0.00020186,2]
[380160882,1755585052908,-267.301356,0.00020186,2]
[380160883,1755585052917,-267.301356,0.00020186,2]
[380160884,1755585052926,-569.77619581,0.00020186,2]
[380160885,1755585052935,-501.26520079,0.00020186,2]
[380160886,1755585052945,-500.0,0.00020186,2]
[380160887,1755585052955,-160.0,0.00020196,3]
[380160888,1755585052964,-160.0,0.00020196,5]
[380160889,1755585052973,-690.601,0.00020196,2]
[380160890,1755585052982,-179.96321779,0.00020196,2]
[380160891,1755585052991,-151.0,0.000202,3]
[380160892,1755585053001,-160.0,0.00020223,2]
[380160893,1755585053009,-500.37432802,0.00020229,2]
[380160894,1755585053018,-2433.70970627,0.00020248,2]
[380160895,1755585053028,-480.0,0.00020273,2]
[380160896,1755585053037,-480.0,0.00020273,2]
[380160897,1755585053046,-151.0,0.00020273,2]
[380160898,1755585053056,-151.0,0.00020273,2]
[380160899,1755585053065,-151.0,0.00020273,2]
[380160900,1755585053074,-151.0,0.00020273,2]
[380160901,1755585053084,-178.086988,0.00020273,2]
[380160902,1755585053093,-178.086988,0.00020273,2]
[380160903,1755585053102,-151.0,0.00020273,2]
[380160904,1755585053111,-480.0,0.00020273,2]
[380160905,1755585053121,-151.0,0.00020273,2]
[380160906,1755585053131,-151.0,0.00020273,2]
[380160907,1755585053141,-218.58317678,0.00020273,2]
[380160908,1755585053150,-417.80171575,0.00020273,2]
[380160909,1755585053159,-480.49304443,0.00020273,2]
[380160910,1755585053168,-613.58168663,0.00020273,2]
[380160911,1755585053177,-707.87,0.00020273,2]
[380160912,1755585053187,-480.0,0.00020273,2]
[380160913,1755585053198,-151.0,0.00020273,2]
[380160914,1755585053208,-542.68372787,0.00020273,2]
[380160915,1755585053217,-480.0,0.00020273,2]
[380160916,1755585053228,-498.85,0.00020273,2]
[380160917,1755585053238,-151.0,0.00020273,2]
[380160918,1755585053249,-151.0,0.00020273,2]
[380160919,1755585053259,-241.06480358,0.00020273,2]
[380160920,1755585053269,-151.0,0.00020273,2]
[380160921,1755585053278,-608.14,0.00020273,2]
[380160922,1755585053287,-151.0,0.00020273,2]
[380160923,1755585053297,-151.0,0.00020273,2]
[380160924,1755585053308,-151.0,0.00020273,2]
[380160925,1755585053317,-480.0,0.00020273,2]
[380160926,1755585053326,-480.0,0.00020273,2]
[380160927,1755585053337,-171.205319,0.00020273,2]
[380160928,1755585053346,-171.205319,0.00020273,2]
[380160929,1755585053355,-226.749327,0.00020273,2]
[380160930,1755585053364,-480.0,0.00020273,2]
[380160931,1755585053374,-632.55,0.00020273,2]
[380160932,1755585053383,-480.0,0.00020273,2]
[380160933,1755585053394,-1021.37,0.00020273,2]
[380160934,1755585053405,-480.0,0.00020273,2]
[380160935,1755585053414,-480.0,0.00020273,2]
[380160936,1755585053424,-542.250259,0.00020273,2]
[380160937,1755585053434,-1595.62,0.00020273,2]
[380160938,1755585053444,-542.250259,0.00020273,2]
[380160939,1755585053454,-480.0,0.00020273,2]
[380160940,1755585053463,-480.0,0.00020273,2]
[380160941,1755585053480,-151.0,0.00020273,2]
[380160942,1755585053499,-480.0,0.00020273,2]
[380160943,1755585053509,-480.0,0.00020273,2]
[380160944,1755585053519,-758.16,0.00020273,2]
[380160945,1755585053530,-480.0,0.00020273,2]
[380160946,1755585053540,-788.15,0.00020273,2]
[380160947,1755585053549,-399.084057,0.00020273,2]
[380160948,1755585053559,-4923.83,0.00020273,2]
[380160949,1755585053568,-399.084057,0.00020273,2]
[380160950,1755585053578,-151.0,0.00020273,2]
[380160951,1755585053587,-770.93,0.00020273,2]
[380160952,1755585053597,-480.0,0.00020273,2]
[380160953,1755585053606,-204.277819,0.00020273,2]
[380160954,1755585053615,-204.277819,0.00020273,2]
[380160955,1755585053625,-480.0,0.00020273,2]
[380160956,1755585053634,-731.17,0.00020273,2]
[380160957,1755585053644,-724.46,0.00020273,2]
[380160958,1755585053653,-605.83,0.00020273,2]
[380160959,1755585053663,-480.0,0.00020273,2]
[380160960,1755585053673,-1434.66,0.00020273,2]
[380160961,1755585053682,-480.0,0.00020273,2]
[380160962,1755585053691,-480.0,0.00020273,2]
[380160963,1755585053701,-409.660367,0.00020273,2]
[380160964,1755585053710,-1274.417039,0.00020273,2]
[380160965,1755585053719,-409.660367,0.00020273,2]
[380160966,1755585053729,-1274.417039,0.00020273,2]
[380160967,1755585053738,-625.98,0.00020273,2]
[380160968,1755585053747,-527.75,0.00020273,2]
[380160969,1755585053756,-152.269523,0.00020273,2]
[380160970,1755585053765,-151.0,0.00020273,2]
[380160971,1755585053775,-151.0,0.00020273,2]
[380160972,1755585053783,-159.472657,0.00020273,2]
[380160973,1755585053793,-480.0,0.00020273,2]
[380160974,1755585053802,-480.0,0.00020273,2]
[380160975,1755585053811,-159.472657,0.00020273,2]
[380160976,1755585053821,-188.956485,0.00020273,2]
[380160977,1755585053830,-188.956485,0.00020273,2]
[380160978,1755585053839,-480.0,0.00020273,2]
[380160979,1755585053848,-519.15061245,0.00020273,2]
[380160980,1755585053857,-151.0,0.00020273,2]
[380160981,1755585053867,-1193.28,0.00020273,2]
[380160982,1755585053876,-1086.8,0.00020273,2]
[380160983,1755585053885,-1576.54,0.00020273,2]
[380160984,1755585053894,-480.0,0.00020273,2]
[380160985,1755585053903,-480.0,0.00020273,2]
[380160986,1755585053912,-310.503962,0.00020273,2]
[380160987,1755585053921,-310.503962,0.00020273,2]
[380160988,1755585053931,-2504.47,0.00020273,2]
[380160989,1755585053940,-151.0,0.00020273,2]
[380160990,1755585053949,-480.0,0.00020273,2]
[380160991,1755585053958,-480.0,0.00020273,2]
[380160992,1755585053967,-480.0,0.00020273,2]
[380160993,1755585053976,-3439.07,0.00020273,2]
[380160994,1755585053986,-1368.58,0.00020273,2]
[380160995,1755585053995,-3431.26,0.00020273,2]
[380160996,1755585054004,-529.48,0.00020273,2]
[380160997,1755585054013,-716.46,0.00020273,2]
[380160998,1755585054022,-623.72,0.00020273,2]
[380160999,1755585054032,-675.5,0.00020273,2]
[380161000,1755585054041,-1034.56,0.00020273,2]
[380161001,1755585054050,-1858.92,0.00020273,2]
[380161002,1755585054060,-510.36,0.00020273,2]
[380161003,1755585054069,-152.246591,0.00020273,2]
[380161004,1755585054079,-151.0,0.00020273,2]
[380161005,1755585054088,-151.0,0.00020273,2]
[380161006,1755585054097,-1938.66,0.00020273,2]
[380161007,1755585054106,-637.45,0.00020273,2]
[380161008,1755585054115,-480.0,0.00020273,2]
[380161009,1755585054125,-480.0,0.00020273,2]
[380161010,1755585054134,-548.48,0.00020273,2]
[380161011,1755585054143,-480.0,0.00020273,2]
[380161012,1755585054152,-480.0,0.00020273,2]
[380161013,1755585054161,-480.0,0.00020273,2]
[380161014,1755585054170,-4712.97,0.00020273,2]
[380161015,1755585054179,-1623.53,0.00020273,2]
[380161016,1755585054188,-480.0,0.00020273,2]
[380161017,1755585054197,-650.51,0.00020273,2]
[380161018,1755585054207,-539.58,0.00020273,2]
[380161019,1755585054216,-480.0,0.00020273,2]
[380161020,1755585054225,-263.262141,0.00020273,2]
[380161021,1755585054235,-263.262141,0.00020273,2]
[380161022,1755585054244,-652.083183,0.00020273,2]
[380161023,1755585054253,-688.16,0.00020273,2]
[380161024,1755585054262,-480.0,0.00020273,2]
[380161025,1755585054271,-542.17789435,0.00020273,2]
[380161026,1755585054280,-652.083183,0.00020273,2]
[380161027,1755585054289,-1346.97,0.00020273,2]
[380161028,1755585054300,-480.0,0.00020273,2]
[380161029,1755585054309,-168.149576,0.00020273,2]
[380161030,1755585054319,-480.0,0.00020273,2]
[380161031,1755585054328,-168.149576,0.00020273,2]
[380161032,1755585054338,-1556.94,0.00020273,2]
[380161033,1755585054347,-480.0,0.00020273,2]
[380161034,1755585054357,-480.0,0.00020273,2]
[380161035,1755585054366,-554.73,0.00020273,2]
[380161036,1755585054376,-151.0,0.00020273,2]
[380161037,1755585054386,-480.0,0.00020273,2]
[380161038,1755585054471,-714.3,0.00020273,2]
[380161039,1755585054482,-480.0,0.00020273,2]
[380161040,1755585054491,-267.301356,0.00020273,2]
[380161041,1755585054501,-480.0,0.00020273,2]
[380161042,1755585054510,-480.0,0.00020273,2]
[380161043,1755585054519,-802.3,0.00020273,2]
[380161044,1755585054529,-267.301356,0.00020273,2]
[380161045,1755585054538,-480.0,0.00020273,2]
[380161046,1755585054547,-480.0,0.00020273,2]
[380161047,1755585054558,-1591.45,0.00020273,2]
[380161048,1755585054567,-151.0,0.00020273,2]
[380161049,1755585054577,-500.0,0.00020274,2]
[380161050,1755585054586,-168.0,0.00020282,2]
[380161051,1755585054595,-168.0,0.00020298,2]
[380161052,1755585054604,-791.012461,0.000203,2]
[380161053,1755585054613,-388.0,0.00020309,2]
[380161054,1755585054623,-168.0,0.00020313,2]
[380161055,1755585054632,-293.8943201,0.00020329,2]
[380161056,1755585054641,-156.34194283,0.00020329,2]
[380161057,1755585054651,-156.34194284,0.00020329,2]
[380161058,1755585054660,-126642.29239412,0.00020333,2]
[380161059,1755585054677,-711.47960323,0.00020333,2]
[380161060,1755585054693,-679.38279731,0.00020333,2]
[380161063,1755585121782,681.19,0.0001861,2]
[380161064,1755585232970,10000.0,0.00018177,2]
[380161080,1755585336722,7108.0174889,0.00018178,2]
[380161082,1755585386620,159.531743,0.00013699,2]
[380161083,1755585557745,15397.618819,0.00018175,2]
[380161084,1755585597553,212.763156,0.00018141,2]
[380161085,1755585642058,1050.2886579,0.00018091,2]
[380161087,1755585694190,13618.8472565,0.00018091,2]
[380161088,1755585704956,1000.0,0.00018091,2]
[380161089,1755585755305,2078.6388439,0.00018088,2]
[380161090,1755586026100,-287.7592482,0.00018721,2]
[380161092,1755586037223,-169.77560574,0.00018721,2]
[380161093,1755586045123,-1501.4334259,0.00018721,2]
[380161094,1755586045146,-124.38968973,0.00018821,2]
[380161095,1755586125540,11960.68287713,0.00018,2]
[380161096,1755586199499,249.621433,0.00018063,2]
[380161138,1755586232296,-306.03199506,0.00018621,2]
[380161140,1755586232306,-185.72848102,0.00018821,2]
[380161142,1755586232315,-1900.0,0.00018842,2]
[380161144,1755586232325,-1020.16048648,0.000189,2]
[380161146,1755586232335,-434.19224161,0.000189,2]
[380161148,1755586232345,-160.0,0.00018967,2]
[380161150,1755586232354,-521.26596413,0.00019067,2]
[380161198,1755586238182,-1674.18417443,0.00019067,2]
[380161200,1755586238192,-300.0,0.00019074,2]
[380161202,1755586238203,-1200.0,0.00019074,2]
[380161204,1755586238212,-300.0,0.00019074,2]
[380161206,1755586238222,-1200.0,0.00019075,2]
[380161208,1755586238233,-2513.38764073,0.00019076,2]
[380161210,1755586238242,-1611.97653517,0.00019078,2]
[380161211,1755586238252,-500.0,0.00019165,2]
[380161212,1755586238262,-500.0,0.00019165,2]
[380161213,1755586238272,-500.0,0.00019165,2]
[380161214,1755586238281,-240.2886931,0.00019165,2]
[380161215,1755586238291,-650.09409029,0.00019165,2]
[380161216,1755586238300,-500.0,0.00019165,2]
[380161217,1755586238310,-217.63093153,0.00019165,2]
[380161218,1755586238319,-434.24284244,0.00019165,2]
[380161219,1755586238329,-1000.0,0.00019166,2]
[380161220,1755586238338,-1000.0,0.00019166,2]
[380161221,1755586238347,-567.0,0.00019166,2]
[380161222,1755586238356,-151.0,0.00019166,2]
[380161223,1755586238366,-151.0,0.00019166,2]
[380161224,1755586238375,-151.0,0.00019166,2]
[380161225,1755586238384,-17842.522448,0.00019166,2]
[380161226,1755586238393,-454.12557677,0.00019166,2]
[380161227,1755586238402,-151.0,0.00019166,2]
[380161228,1755586238412,-151.0,0.00019166,2]
[380161229,1755586238422,-151.0,0.00019166,2]
[380161230,1755586238431,-151.0,0.00019166,2]
[380161231,1755586238439,-151.0,0.00019166,2]
[380161232,1755586238449,-151.0,0.00019166,2]
[380161233,1755586238458,-151.0,0.00019166,2]
[380161234,1755586238467,-151.0,0.00019166,2]
[380161235,1755586238476,-151.0,0.00019166,2]
[380161236,1755586238487,-151.0,0.00019166,2]
[380161237,1755586238495,-151.0,0.00019166,2]
[380161238,1755586238505,-194.24099703,0.00019166,2]
[380161239,1755586238514,-300.0,0.00019166,2]
[380161240,1755586238523,-151.0,0.00019166,2]
[380161241,1755586238532,-300.0,0.00019166,2]
[380161242,1755586238541,-151.0,0.00019166,2]
[380161243,1755586238550,-300.0,0.00019166,2]
[380161244,1755586238559,-151.0,0.00019166,2]
[380161245,1755586238569,-300.0,0.00019166,2]
[380161246,1755586238579,-151.0,0.00019166,2]
[380161247,1755586238588,-300.0,0.00019166,2]
[380161248,1755586238597,-151.0,0.00019166,2]
[380161249,1755586238606,-300.0,0.00019166,2]
[380161250,1755586238616,-151.0,0.00019166,2]
[380161251,1755586238625,-300.0,0.00019166,2]
[380161252,1755586238634,-151.0,0.00019166,2]
[380161253,1755586238643,-300.0,0.00019166,2]
[380161254,1755586238653,-151.0,0.00019166,2]
[380161255,1755586238663,-300.0,0.00019166,2]
[380161256,1755586238672,-151.0,0.00019166,2]
[380161257,1755586238682,-300.0,0.00019166,2]
[380161258,1755586238692,-151.0,0.00019166,2]
[380161259,1755586238701,-323.29850312,0.00019166,2]
[380161260,1755586238710,-151.0,0.00019166,2]
[380161261,1755586238720,-155.2370775,0.00019166,2]
[380161262,1755586238729,-500.0,0.00019167,2]
[380161263,1755586238739,-697.2,0.00019168,3]
[380161264,1755586238748,-348.6,0.00019168,3]
[380161265,1755586238757,-174.3,0.00019168,3]
[380161266,1755586238767,-522.9,0.00019168,3]
[380161267,1755586238776,-500.0,0.00019173,2]
[380161268,1755586238785,-500.0,0.00019173,2]
[380161269,1755586238794,-500.0,0.00019173,2]
[380161270,1755586238803,-500.0,0.00019173,2]
[380161271,1755586238813,-500.0,0.00019173,2]
[380161272,1755586238822,-500.0,0.00019173,2]
[380161273,1755586238831,-503.66245979,0.00019173,2]
[380161274,1755586238840,-500.0,0.00019173,2]
[380161275,1755586238850,-182.14995145,0.00019177,2]
[380161276,1755586238859,-480.0,0.00019178,2]
[380161277,1755586238868,-480.0,0.00019178,2]
[380161278,1755586238878,-480.0,0.00019178,2]
[380161279,1755586238887,-480.0,0.00019178,2]
[380161280,1755586238896,-493.29084955,0.00019178,2]
[380161281,1755586238905,-480.0,0.00019178,2]
[380161282,1755586238915,-480.0,0.00019178,2]
[380161283,1755586238925,-480.0,0.00019178,2]
[380161284,1755586238937,-558.33,0.00019178,2]
[380161285,1755586238946,-480.0,0.00019178,2]
[380161286,1755586238956,-480.0,0.00019178,2]
[380161287,1755586238968,-480.0,0.00019178,2]
[380161288,1755586238977,-605.9051855,0.00019178,2]
[380161289,1755586238988,-481.68423279,0.00019178,2]
[380161290,1755586238996,-480.0,0.00019178,2]
[380161291,1755586239007,-480.0,0.00019178,2]
[380161292,1755586239017,-480.0,0.00019178,2]
[380161293,1755586239027,-390.41129437,0.00019178,2]
[380161294,1755586239036,-502.32030562,0.00019178,2]
[380161295,1755586239046,-460.0,0.00019178,2]
[380161296,1755586239057,-480.0,0.00019178,2]
[380161297,1755586239066,-480.0,0.00019178,2]
[380161298,1755586239075,-480.0,0.00019178,2]
[380161299,1755586239085,-480.0,0.00019178,2]
[380161300,1755586239094,-480.0,0.00019178,2]
[380161301,1755586239103,-480.0,0.00019178,2]
[380161302,1755586239112,-484.26603514,0.00019178,2]
[380161303,1755586239121,-400.0,0.00019178,2]
[380161304,1755586239131,-480.0,0.00019178,2]
[380161305,1755586239140,-480.0,0.00019178,2]
[380161306,1755586239149,-481.91176427,0.00019178,2]
[380161307,1755586239159,-480.0,0.00019178,2]
[380161308,1755586239168,-480.0,0.00019178,2]
[380161309,1755586239177,-480.0,0.00019178,2]
[380161310,1755586239187,-382.36099808,0.00019178,2]
[380161311,1755586239196,-294.11830118,0.00019178,2]
[380161312,1755586239205,-480.0,0.00019178,2]
[380161313,1755586239214,-480.0,0.00019178,2]
[380161314,1755586239224,-629.9,0.00019178,2]
[380161315,1755586239233,-436.57500227,0.00019178,2]
[380161316,1755586239242,-481.69646888,0.00019178,2]
[380161317,1755586239252,-480.0,0.00019178,2]
[380161318,1755586239261,-480.0,0.00019178,2]
[380161319,1755586239354,-294.95834607,0.00019178,2]
[380161320,1755586239381,-480.0,0.00019178,2]
[380161321,1755586239392,-484.59875035,0.00019178,2]
[380161322,1755586239402,-480.0,0.00019178,2]
[380161323,1755586239412,-480.0,0.00019178,2]
[380161324,1755586239421,-480.0,0.00019178,2]
[380161325,1755586239430,-480.0,0.00019178,2]
[380161326,1755586239439,-480.0,0.00019178,2]
[380161327,1755586239448,-480.0,0.00019178,2]
[380161328,1755586239458,-480.0,0.00019178,2]
[380161329,1755586239467,-480.0,0.00019178,2]
[380161330,1755586239476,-480.0,0.00019178,2]
[380161331,1755586239487,-480.0,0.00019178,2]
[380161332,1755586239496,-480.0,0.00019178,2]
[380161333,1755586239505,-402.35472963,0.00019178,2]
[380161334,1755586239515,-480.0,0.00019178,2]
[380161335,1755586239524,-480.0,0.00019178,2]
[380161336,1755586239534,-480.0,0.00019178,2]
[380161337,1755586239544,-480.0,0.00019178,2]
[380161338,1755586239554,-180.0,0.00019178,2]
[380161339,1755586239564,-480.0,0.00019178,2]
[380161340,1755586239573,-480.0,0.00019178,2]
[380161341,1755586239582,-1263.8,0.00019178,2]
[380161342,1755586239592,-693.06,0.00019178,2]
[380161343,1755586239600,-480.0,0.00019178,2]
[380161344,1755586239610,-480.0,0.00019178,2]
[380161345,1755586239619,-889.88,0.00019178,2]
[380161346,1755586239628,-480.0,0.00019178,2]
[380161347,1755586239638,-480.0,0.00019178,2]
[380161348,1755586239648,-514.9,0.00019178,2]
[380161349,1755586239657,-480.0,0.00019178,2]
[380161350,1755586239667,-480.0,0.00019178,2]
[380161351,1755586239676,-480.0,0.00019178,2]
[380161352,1755586239685,-522.91,0.00019178,2]
[380161353,1755586239695,-480.0,0.00019178,2]
[380161354,1755586239705,-521.2,0.00019178,2]
[380161355,1755586239714,-2130.35,0.00019178,2]
[380161356,1755586239724,-480.0,0.00019178,2]
[380161357,1755586239735,-480.0,0.00019178,2]
[380161358,1755586239744,-480.0,0.00019178,2]
[380161359,1755586239753,-480.0,0.00019178,2]
[380161360,1755586239762,-480.0,0.00019178,2]
[380161361,1755586239774,-480.0,0.00019178,2]
[380161362,1755586239783,-501.95,0.00019178,2]
[380161363,1755586239792,-480.0,0.00019178,2]
[380161364,1755586239801,-441.03811493,0.00019178,2]
[380161365,1755586239811,-480.0,0.00019178,2]
[380161366,1755586239821,-480.0,0.00019178,2]
[380161367,1755586239830,-464.66732605,0.00019178,2]
[380161368,1755586239839,-421.28563584,0.00019178,2]
[380161369,1755586239849,-480.0,0.00019178,2]
[380161370,1755586239858,-1387.86,0.00019178,2]
[380161371,1755586239868,-480.0,0.00019178,2]
[380161372,1755586239877,-625.25,0.00019178,2]
[380161373,1755586239888,-480.0,0.00019178,2]
[380161374,1755586239897,-480.0,0.00019178,2]
[380161375,1755586239907,-480.0,0.00019178,2]
[380161376,1755586239916,-480.0,0.00019178,2]
[380161377,1755586239926,-480.0,0.00019178,2]
[380161378,1755586239935,-480.0,0.00019178,2]
[380161379,1755586239944,-480.0,0.00019178,2]
[380161380,1755586239954,-481.56987683,0.00019178,2]
[380161381,1755586239966,-480.0,0.00019178,2]
[380161382,1755586239976,-480.0,0.00019178,2]
[380161383,1755586239986,-480.0,0.00019178,2]
[380161384,1755586239996,-480.0,0.00019178,2]
[380161385,1755586240006,-480.0,0.00019178,2]
[380161386,1755586240015,-1358.7,0.00019178,2]
[380161387,1755586240028,-480.0,0.00019178,2]
[380161388,1755586240039,-480.0,0.00019178,2]
[380161389,1755586240048,-631.8,0.00019178,2]
[380161390,1755586240058,-480.0,0.00019178,2]
[380161391,1755586240067,-676.87,0.00019178,2]
[380161392,1755586240077,-480.0,0.00019178,2]
[380161393,1755586240086,-460.0,0.00019178,2]
[380161394,1755586240096,-480.0,0.00019178,2]
[380161395,1755586240105,-480.0,0.00019178,2]
[380161396,1755586240114,-480.0,0.00019178,2]
[380161397,1755586240123,-497.99,0.00019178,2]
[380161398,1755586240133,-480.0,0.00019178,2]
[380161399,1755586240142,-480.0,0.00019178,2]
[380161400,1755586240151,-480.0,0.00019178,2]
[380161401,1755586240161,-593.53,0.00019178,2]
[380161402,1755586240171,-1292.21,0.00019178,2]
[380161403,1755586240181,-480.0,0.00019178,2]
[380161404,1755586240191,-480.0,0.00019178,2]
[380161405,1755586240200,-480.0,0.00019178,2]
[380161406,1755586240210,-480.0,0.00019178,2]
[380161407,1755586240219,-480.0,0.00019178,2]
[380161408,1755586240229,-480.0,0.00019178,2]
[380161409,1755586240240,-480.0,0.00019178,2]
[380161410,1755586240249,-403.20127011,0.00019178,2]
[380161411,1755586240259,-480.0,0.00019178,2]
[380161412,1755586240268,-480.0,0.00019178,2]
[380161413,1755586240278,-480.0,0.00019178,2]
[380161414,1755586240287,-480.0,0.00019178,2]
[380161415,1755586240296,-480.0,0.00019178,2]
[380161416,1755586240306,-480.0,0.00019178,2]
[380161417,1755586240315,-361.95291021,0.00019178,2]
[380161418,1755586240325,-998.84,0.00019178,2]
[380161419,1755586240335,-480.0,0.00019178,2]
[380161420,1755586240344,-480.0,0.00019178,2]
[380161421,1755586240354,-480.0,0.00019178,2]
[380161422,1755586240364,-480.0,0.00019178,2]
[380161423,1755586240374,-1087.06,0.00019178,2]
[380161424,1755586240383,-480.0,0.00019178,2]
[380161425,1755586240393,-357.86831733,0.00019178,2]
[380161426,1755586240403,-1226.39,0.00019178,2]
[380161428,1755586240413,-480.0,0.00019178,2]
[380161429,1755586240422,-480.0,0.00019178,2]
[380161430,1755586240432,-480.0,0.00019178,2]
[380161431,1755586240442,-480.0,0.00019178,2]
[380161432,1755586240451,-480.0,0.00019178,2]
[380161433,1755586240461,-1177.79,0.00019178,2]
[380161434,1755586240472,-558.93830976,0.00019178,2]
[380161435,1755586240481,-480.0,0.00019178,2]
[380161436,1755586240494,-480.0,0.00019178,2]
[380161437,1755586240503,-480.0,0.00019178,2]
[380161438,1755586240513,-480.0,0.00019178,2]
[380161439,1755586240523,-2603.02,0.00019178,2]
[380161440,1755586240532,-480.0,0.00019178,2]